[Event "CCT Chessable Masters Play-In 2025"]
[Site "Online"]
[Date "2025.02.17"]
[Round "2.40"]
[White "Nasuta, Grzegorz"]
[Black "Sevian, Samuel"]
[Result "0-1"]
[ECO "C50"]
[WhiteElo "2506"]
[BlackElo "2692"]
[PlyCount "170"]
[EventDate "2025.02.13"]
[EventType "swiss"]
[EventCountry "NET"]
[TimeControl "600"]
[BlackClock "0:00:06"]

1. e4 {[%emt 0:00:01]} e5 {[%emt 0:00:01]} 2. Nf3 {[%emt 0:00:01]} Nc6 {[%emt 0:00:01]} 3. Bc4 {[%emt 0:00:01]} Bc5 {[%emt 0:00:02]} 4. d3 {[%emt 0:00:04]} Nf6 {[%emt 0:00:01]} 5. Nc3 {[%emt 0:00:01]} d6 {[%emt 0:00:08]} 6. Na4 {[%emt 0:00:02]} Bb6 {[%emt 0:00:01]} 7. a3 {[%emt 0:00:02]} Ne7 {[%emt 0:00:00]} 8. Nxb6 {[%emt 0:00:21]} axb6 {[%emt 0:00:01]} 9. h3 {[%emt 0:00:02]} Ng6 {[%emt 0:00:04]} 10. O-O {[%emt 0:00:02]} O-O {[%emt 0:00:01]} 11. Re1 {[%emt 0:00:09]} Re8 {[%emt 0:00:02]} 12. d4 {[%emt 0:00:44]} Qe7 {[%emt 0:00:36]} 13. b3 {[%emt 0:00:24]} Be6 {[%emt 0:00:22]} 14. Bf1 {[%emt 0:00:48]} h6 {[%emt 0:00:03]} 15. a4 {[%emt 0:00:08]} c5 {[%emt 0:00:28]} 16. dxe5 {[%emt 0:00:10]} dxe5 {[%emt 0:00:09]} 17. Nd2 {[%emt 0:00:14]} Rad8 {[%emt 0:00:05]} 18. Qf3 {[%emt 0:00:02]} Nh7 {[%emt 0:00:35]} 19. Nc4 {[%emt 0:00:06]} Qc7 {[%emt 0:00:03]} 20. Qg3 {[%emt 0:00:11]} Nf6 {[%emt 0:00:06]} 21. Qf3 {[%emt 0:00:28]} Nh4 {[%emt 0:00:06]} 22. Qg3 {[%emt 0:01:00]} Ng6 {[%emt 0:00:01]} 23. Bb2 {[%emt 0:00:15]} Bd7 {[%emt 0:00:53]} 24. Rad1 {[%emt 0:00:06]} Re6 {[%emt 0:00:01]} 25. f3 {[%emt 0:00:27]} b5 {[%emt 0:01:03]} 26. axb5 {[%emt 0:00:07]} Bxb5 {[%emt 0:00:00]} 27. Rxd8+ {[%emt 0:00:03]} Qxd8 {[%emt 0:00:00]} 28. Nxe5 {[%emt 0:01:19]} Bxf1 {[%emt 0:00:03]} 29. Nxg6 {[%emt 0:00:34]} Nh5 {[%emt 0:00:01]} 30. Qh4 {[%emt 0:00:00]} Qd2 {[%emt 0:00:01]} 31. Rxf1 {[%emt 0:00:27]} Rxg6 {[%emt 0:00:08]} 32. Qf2 {[%emt 0:00:03]} Qg5 {[%emt 0:00:31]} 33. g4 {[%emt 0:00:05]} Nf4 {[%emt 0:00:05]} 34. Kh2 {[%emt 0:00:04]} Rd6 {[%emt 0:00:02]} 35. Bc1 {[%emt 0:00:03]} Qe5 {[%emt 0:01:12]} 36. Qg3 {[%emt 0:00:01]} g5 {[%emt 0:00:01]} 37. Kh1 {[%emt 0:00:03]} b5 {[%emt 0:00:09]} 38. Be3 {[%emt 0:00:03]} c4 {[%emt 0:00:06]} 39. bxc4 {[%emt 0:00:01]} bxc4 {[%emt 0:00:00]} 40. Rb1 {[%emt 0:00:05]} c3 {[%emt 0:00:05]} 41. h4 {[%emt 0:00:05]} Kg7 {[%emt 0:00:05]} 42. h5 {[%emt 0:00:02]} Qf6 {[%emt 0:00:08]} 43. Kh2 {[%emt 0:00:07]} Ra6 {[%emt 0:00:05]} 44. Rd1 {[%emt 0:00:03]} Ra4 {[%emt 0:00:10]} 45. Kh1 {[%emt 0:00:03]} Ne6 {[%emt 0:00:03]} 46. Rd5 {[%emt 0:00:06]} Ra1+ {[%emt 0:00:07]} 47. Kh2 {[%emt 0:00:03]} Ra2 {[%emt 0:00:00]} 48. Qf2 {[%emt 0:00:01]} Qe7 {[%emt 0:00:07]} 49. Bd4+ {[%emt 0:00:01]} Kh7 {[%emt 0:00:09]} 50. Bxc3 {[%emt 0:00:01]} Qc7+ {[%emt 0:00:39]} 51. Be5 {[%emt 0:00:01]} Qc6 {[%emt 0:00:18]} 52. Rd2 {[%emt 0:00:02]} Ra5 {[%emt 0:00:01]} 53. Bg3 {[%emt 0:00:01]} Rc5 {[%emt 0:00:01]} 54. Kh3 {[%emt 0:00:02]} Rc3 {[%emt 0:00:01]} 55. Qe2 {[%emt 0:00:01]} Qc5 {[%emt 0:00:03]} 56. Kh2 {[%emt 0:00:03]} Nd4 {[%emt 0:00:02]} 57. Bf2 {[%emt 0:00:05]} Qe5+ {[%emt 0:00:15]} 58. Bg3 {[%emt 0:00:00]} Qf6 {[%emt 0:00:04]} 59. Qf2 {[%emt 0:00:04]} Nxf3+ {[%emt 0:00:04]} 60. Kg2 {[%emt 0:00:01]} Qe6 {[%emt 0:00:02]} 61. Rd3 {[%emt 0:00:04]} Nh4+ {[%emt 0:00:05]} 62. Bxh4 {[%emt 0:00:02]} Qxg4+ {[%emt 0:00:01]} 63. Bg3 {[%emt 0:00:01]} Rc7 {[%emt 0:00:00]} 64. Qf5+ {[%emt 0:00:01]} Qxf5 {[%emt 0:00:00]} 65. exf5 {[%emt 0:00:00]} Rxc2+ {[%emt 0:00:01]} 66. Kh3 {[%emt 0:00:00]} Rc5 {[%emt 0:00:00]} 67. Kg4 {[%emt 0:00:01]} Rc4+ {[%emt 0:00:00]} 68. Kh3 {[%emt 0:00:01]} Rc5 {[%emt 0:00:00]} 69. Kg4 {[%emt 0:00:02]} Kg7 {[%emt 0:00:01]} 70. Bf2 {[%emt 0:00:02]} Rc4+ {[%emt 0:00:00]} 71. Bd4+ {[%emt 0:00:00]} f6 {[%emt 0:00:01]} 72. Kf3 {[%emt 0:00:01]} Kf7 {[%emt 0:00:00]} 73. Ke4 {[%emt 0:00:00]} Rc7 {[%emt 0:00:01]} 74. Rb3 {[%emt 0:00:00]} Re7+ {[%emt 0:00:00]} 75. Kf3 {[%emt 0:00:01]} Rd7 {[%emt 0:00:00]} 76. Rb4 {[%emt 0:00:00]} Rd5 {[%emt 0:00:01]} 77. Ke4 {[%emt 0:00:01]} Ra5 {[%emt 0:00:00]} 78. Rb6 {[%emt 0:00:00]} Kf8 {[%emt 0:00:00]} 79. Rxf6+ {[%emt 0:00:02]} Ke7 {[%emt 0:00:00]} 80. Re6+ {[%emt 0:00:00]} Kd7 {[%emt 0:00:00]} 81. Rxh6 {[%emt 0:00:00]} Ra2 {[%emt 0:00:00]} 82. Rh7+ {[%emt 0:00:00]} Kc6 {[%emt 0:00:01]} 83. Ke5 {[%emt 0:00:01]} Kb5 {[%emt 0:00:00]} 84. f6 {[%emt 0:00:00]} Re2+ {[%emt 0:00:00]} 85. Kf5 g4 {[%emt 0:00:01]} 0-1

[Event "CCT Chessable Masters Play-In 2025"]
[Site "Online"]
[Date "2025.02.17"]
[Round "2.41"]
[White "Tari, Aryan"]
[Black "Dubov, Daniil"]
[Result "1/2-1/2"]
[ECO "B52"]
[WhiteElo "2621"]
[BlackElo "2701"]
[PlyCount "165"]
[EventDate "2025.02.13"]
[EventType "swiss"]
[EventCountry "NET"]
[TimeControl "600"]
[WhiteClock "0:00:30"]
[BlackClock "0:01:11"]

1. e4 {[%emt 0:00:01]} c5 {[%emt 0:00:01]} 2. Nf3 {[%emt 0:00:03]} d6 {[%emt 0:00:01]} 3. Bb5+ {[%emt 0:00:15]} Bd7 {[%emt 0:00:02]} 4. Bxd7+ {[%emt 0:00:03]} Qxd7 {[%emt 0:00:00]} 5. d4 {[%emt 0:00:01]} cxd4 {[%emt 0:00:03]} 6. Qxd4 {[%emt 0:00:00]} Nc6 {[%emt 0:00:05]} 7. Qd3 {[%emt 0:00:01]} Rc8 {[%emt 0:00:12]} 8. c4 {[%emt 0:00:01]} Nf6 {[%emt 0:00:02]} 9. Nc3 {[%emt 0:00:09]} Ne5 {[%emt 0:00:01]} 10. Nxe5 {[%emt 0:00:02]} dxe5 {[%emt 0:00:00]} 11. Qxd7+ {[%emt 0:00:25]} Nxd7 {[%emt 0:00:00]} 12. b3 {[%emt 0:00:04]} e6 {[%emt 0:00:02]} 13. Ke2 {[%emt 0:00:12]} Bc5 {[%emt 0:00:15]} 14. Be3 {[%emt 0:00:05]} Bxe3 {[%emt 0:00:19]} 15. Kxe3 {[%emt 0:00:01]} Ke7 {[%emt 0:00:04]} 16. Rhd1 {[%emt 0:00:17]} Nb8 {[%emt 0:00:03]} 17. Rd2 {[%emt 0:00:13]} Rhd8 {[%emt 0:00:03]} 18. Rxd8 {[%emt 0:00:06]} Rxd8 {[%emt 0:00:03]} 19. Rd1 {[%emt 0:00:01]} Rc8 {[%emt 0:00:03]} 20. h4 {[%emt 0:00:17]} h5 {[%emt 0:00:11]} 21. f3 {[%emt 0:00:08]} Nc6 {[%emt 0:00:03]} 22. Ne2 {[%emt 0:00:03]} g6 {[%emt 0:00:18]} 23. Rd2 {[%emt 0:00:02]} Rg8 {[%emt 0:00:07]} 24. Nc1 {[%emt 0:00:04]} g5 {[%emt 0:00:33]} 25. hxg5 {[%emt 0:00:07]} Rxg5 {[%emt 0:00:00]} 26. Nd3 {[%emt 0:00:02]} h4 {[%emt 0:00:06]} 27. Kf2 {[%emt 0:00:13]} b6 {[%emt 0:00:06]} 28. b4 {[%emt 0:00:07]} f6 {[%emt 0:00:08]} 29. a4 {[%emt 0:00:25]} Rh5 {[%emt 0:00:09]} 30. Rd1 {[%emt 0:00:40]} Rh8 {[%emt 0:00:09]} 31. b5 {[%emt 0:00:19]} Nd4 {[%emt 0:00:02]} 32. f4 {[%emt 0:00:21]} Kd6 {[%emt 0:00:32]} 33. fxe5+ {[%emt 0:00:09]} fxe5 {[%emt 0:00:00]} 34. Nb4 {[%emt 0:00:01]} h3 {[%emt 0:00:31]} 35. gxh3 {[%emt 0:00:04]} Rxh3 {[%emt 0:00:01]} 36. Nc6 {[%emt 0:00:01]} Rf3+ {[%emt 0:00:08]} 37. Kg2 {[%emt 0:00:04]} Ra3 {[%emt 0:00:00]} 38. Nxd4 {[%emt 0:00:23]} exd4 {[%emt 0:00:02]} 39. Rxd4+ {[%emt 0:00:06]} Ke5 {[%emt 0:00:24]} 40. Rd7 {[%emt 0:00:04]} Rxa4 {[%emt 0:00:01]} 41. Rc7 {[%emt 0:00:25]} Kxe4 {[%emt 0:00:58]} 42. c5 {[%emt 0:00:02]} Ra5 {[%emt 0:00:01]} 43. c6 {[%emt 0:00:46]} Ke5 {[%emt 0:00:40]} 44. Rb7 {[%emt 0:00:45]} Rxb5 {[%emt 0:00:20]} 45. c7 {[%emt 0:00:01]} Rc5 {[%emt 0:00:05]} 46. Rxa7 {[%emt 0:00:01]} Ke4 {[%emt 0:00:25]} 47. Rb7 {[%emt 0:00:09]} e5 {[%emt 0:00:18]} 48. Kf2 {[%emt 0:00:24]} Rc2+ {[%emt 0:00:15]} 49. Ke1 {[%emt 0:00:24]} Ke3 {[%emt 0:00:06]} 50. Kd1 {[%emt 0:00:04]} Rc6 {[%emt 0:00:04]} 51. Rxb6 {[%emt 0:00:05]} Rxc7 {[%emt 0:00:01]} 52. Rb3+ {[%emt 0:00:20]} Kf2 {[%emt 0:00:01]} 53. Rb2+ {[%emt 0:00:00]} Kf3 {[%emt 0:00:01]} 54. Rb3+ {[%emt 0:00:02]} Kf2 {[%emt 0:00:03]} 55. Rb2+ {[%emt 0:00:00]} Ke3 {[%emt 0:00:12]} 56. Rb3+ {[%emt 0:00:01]} Kf4 {[%emt 0:00:02]} 57. Ke2 {[%emt 0:00:01]} Rc2+ {[%emt 0:00:01]} 58. Ke1 {[%emt 0:00:01]} Ra2 {[%emt 0:00:02]} 59. Rc3 {[%emt 0:00:00]} e4 {[%emt 0:00:01]} 60. Rb3 {[%emt 0:00:01]} Ke5 {[%emt 0:00:02]} 61. Rc3 {[%emt 0:00:01]} Kd4 {[%emt 0:00:01]} 62. Rh3 {[%emt 0:00:00]} Rg2 {[%emt 0:00:01]} 63. Ra3 {[%emt 0:00:01]} Ke5 {[%emt 0:00:03]} 64. Rb3 {[%emt 0:00:01]} Kf4 {[%emt 0:00:00]} 65. Ra3 {[%emt 0:00:00]} Rh2 {[%emt 0:00:02]} 66. Rb3 {[%emt 0:00:01]} Ra2 {[%emt 0:00:01]} 67. Rc3 {[%emt 0:00:00]} Rb2 {[%emt 0:00:02]} 68. Ra3 {[%emt 0:00:01]} Rb1+ {[%emt 0:00:03]} 69. Ke2 {[%emt 0:00:01]} Rb8 {[%emt 0:00:00]} 70. Rc3 {[%emt 0:00:02]} Rb4 {[%emt 0:00:02]} 71. Ra3 {[%emt 0:00:00]} e3 {[%emt 0:00:01]} 72. Ra8 {[%emt 0:00:03]} Rb2+ {[%emt 0:00:01]} 73. Ke1 {[%emt 0:00:01]} Rb1+ {[%emt 0:00:01]} 74. Ke2 {[%emt 0:00:01]} Rb2+ {[%emt 0:00:00]} 75. Ke1 {[%emt 0:00:00]} Rb1+ {[%emt 0:00:00]} 76. Ke2 {[%emt 0:00:01]} Rb3 {[%emt 0:00:00]} 77. Rf8+ {[%emt 0:00:01]} Ke4 {[%emt 0:00:01]} 78. Re8+ {[%emt 0:00:00]} Kf4 {[%emt 0:00:00]} 79. Rf8+ {[%emt 0:00:01]} Ke4 {[%emt 0:00:00]} 80. Re8+ {[%emt 0:00:00]} Kd4 {[%emt 0:00:01]} 81. Rd8+ {[%emt 0:00:01]} Ke5 {[%emt 0:00:00]} 82. Re8+ {[%emt 0:00:00]} Kf4 {[%emt 0:00:01]} 83. Rf8+ {[%emt 0:00:01]} 1/2-1/2

[Event "CCT Chessable Masters Play-In 2025"]
[Site "Online"]
[Date "2025.02.17"]
[Round "2.42"]
[White "Yakubboev, Nodirbek"]
[Black "Bachmann, Axel"]
[Result "1-0"]
[ECO "E93"]
[WhiteElo "2659"]
[BlackElo "2570"]
[PlyCount "71"]
[EventDate "2025.02.13"]
[EventType "swiss"]
[EventCountry "NET"]
[TimeControl "600"]
[WhiteClock "0:03:24"]
[BlackClock "0:02:44"]

1. d4 {[%emt 0:00:01]} Nf6 {[%emt 0:00:03]} 2. c4 {[%emt 0:00:01]} g6 {[%emt 0:00:04]} 3. Nc3 {[%emt 0:00:01]} Bg7 {[%emt 0:00:01]} 4. e4 {[%emt 0:00:01]} d6 {[%emt 0:00:01]} 5. Be2 {[%emt 0:00:01]} O-O {[%emt 0:00:06]} 6. Be3 {[%emt 0:00:02]} Nbd7 {[%emt 0:00:07]} 7. h3 {[%emt 0:00:20]} e5 {[%emt 0:00:06]} 8. d5 {[%emt 0:00:02]} Nc5 {[%emt 0:00:01]} 9. Qc2 {[%emt 0:00:01]} a5 {[%emt 0:00:03]} 10. Nf3 {[%emt 0:00:03]} Nh5 {[%emt 0:00:02]} 11. g3 {[%emt 0:00:05]} f5 {[%emt 0:00:04]} 12. Bxc5 {[%emt 0:00:04]} dxc5 {[%emt 0:00:01]} 13. O-O-O {[%emt 0:00:01]} a4 {[%emt 0:00:36]} 14. a3 {[%emt 0:00:04]} Qd6 {[%emt 0:00:08]} 15. Bd3 {[%emt 0:00:45]} Bd7 {[%emt 0:00:07]} 16. Kb1 {[%emt 0:00:05]} Nf6 {[%emt 0:01:11]} 17. Ng5 {[%emt 0:00:30]} h6 {[%emt 0:00:22]} 18. Ne6 {[%emt 0:00:08]} Bxe6 {[%emt 0:00:01]} 19. dxe6 {[%emt 0:00:00]} Qxe6 {[%emt 0:00:00]} 20. exf5 {[%emt 0:00:02]} gxf5 {[%emt 0:00:01]} 21. Bxf5 {[%emt 0:00:14]} Qxc4 {[%emt 0:00:01]} 22. Rhe1 {[%emt 0:00:08]} Rfe8 {[%emt 0:00:28]} 23. Bg6 {[%emt 0:00:05]} Re7 {[%emt 0:00:01]} 24. f4 {[%emt 0:00:02]} c6 {[%emt 0:00:21]} 25. Rxe5 {[%emt 0:00:49]} Rxe5 {[%emt 0:02:28]} 26. fxe5 {[%emt 0:00:00]} Nd5 {[%emt 0:00:00]} 27. Nxd5 {[%emt 0:00:04]} cxd5 {[%emt 0:00:16]} 28. Qxc4 {[%emt 0:00:58]} dxc4 {[%emt 0:00:00]} 29. e6 {[%emt 0:00:01]} Bf6 {[%emt 0:00:02]} 30. Rd7 {[%emt 0:00:04]} Ra6 {[%emt 0:00:01]} 31. Rxb7 {[%emt 0:00:30]} Rd6 {[%emt 0:00:01]} 32. Bh5 {[%emt 0:00:04]} Rd5 {[%emt 0:00:11]} 33. Be2 {[%emt 0:01:11]} Rd4 {[%emt 0:00:11]} 34. e7 {[%emt 0:00:04]} Re4 {[%emt 0:00:04]} 35. Rb8+ {[%emt 0:00:01]} Kf7 {[%emt 0:00:06]} 36. Bh5+ {[%emt 0:00:04]} 1-0

[Event "CCT Chessable Masters Play-In 2025"]
[Site "Online"]
[Date "2025.02.17"]
[Round "2.43"]
[White "Eljanov, Pavel"]
[Black "Bartel, Mateusz"]
[Result "1/2-1/2"]
[ECO "D02"]
[WhiteElo "2658"]
[BlackElo "2629"]
[PlyCount "95"]
[EventDate "2025.02.13"]
[EventType "swiss"]
[EventCountry "NET"]
[TimeControl "600"]
[WhiteClock "0:00:50"]
[BlackClock "0:00:28"]

1. d4 {[%emt 0:00:01]} d5 {[%emt 0:00:06]} 2. Nf3 {[%emt 0:00:01]} Nf6 {[%emt 0:00:03]} 3. Bf4 {[%emt 0:00:01]} c5 {[%emt 0:00:12]} 4. e3 {[%emt 0:00:01]} Nc6 {[%emt 0:00:03]} 5. Nbd2 {[%emt 0:00:01]} Nh5 {[%emt 0:00:26]} 6. Be5 {[%emt 0:00:06]} f6 {[%emt 0:00:02]} 7. c4 {[%emt 0:00:01]} e6 {[%emt 0:00:14]} 8. Bg3 {[%emt 0:00:01]} Nxg3 {[%emt 0:00:19]} 9. hxg3 {[%emt 0:00:02]} cxd4 {[%emt 0:00:08]} 10. Nxd4 {[%emt 0:00:02]} Nxd4 {[%emt 0:00:24]} 11. exd4 {[%emt 0:00:02]} Kf7 {[%emt 0:00:02]} 12. Be2 {[%emt 0:00:17]} Bd7 {[%emt 0:00:19]} 13. Qb3 {[%emt 0:01:57]} Bc6 {[%emt 0:00:24]} 14. Bf3 {[%emt 0:00:51]} Qa5 {[%emt 0:00:13]} 15. O-O-O {[%emt 0:00:17]} Ba4 {[%emt 0:01:32]} 16. Qxb7+ {[%emt 0:00:04]} Be7 {[%emt 0:00:02]} 17. cxd5 {[%emt 0:01:58]} Rhc8+ {[%emt 0:00:03]} 18. Kb1 {[%emt 0:00:01]} Rab8 {[%emt 0:00:01]} 19. dxe6+ {[%emt 0:00:13]} Kf8 {[%emt 0:00:01]} 20. Nc4 {[%emt 0:00:22]} Qf5+ {[%emt 0:01:16]} 21. Qe4 {[%emt 0:00:01]} Qxe4+ {[%emt 0:01:20]} 22. Bxe4 {[%emt 0:00:01]} Bxd1 {[%emt 0:00:01]} 23. Ne3 {[%emt 0:00:03]} Ba4 {[%emt 0:00:39]} 24. Rxh7 {[%emt 0:00:02]} Kg8 {[%emt 0:00:01]} 25. Rh1 {[%emt 0:00:01]} Be8 {[%emt 0:00:38]} 26. Bh7+ {[%emt 0:00:22]} Kf8 {[%emt 0:00:02]} 27. Bc2 {[%emt 0:00:06]} g6 {[%emt 0:00:02]} 28. Nd5 {[%emt 0:00:09]} Rd8 {[%emt 0:00:10]} 29. Nf4 {[%emt 0:01:29]} Kg7 {[%emt 0:00:02]} 30. d5 {[%emt 0:00:06]} Bd6 {[%emt 0:00:01]} 31. Bb3 {[%emt 0:00:02]} Bxf4 {[%emt 0:00:02]} 32. gxf4 {[%emt 0:00:01]} Rb7 {[%emt 0:00:03]} 33. Rd1 {[%emt 0:00:02]} Rd6 {[%emt 0:00:01]} 34. g4 {[%emt 0:00:05]} f5 {[%emt 0:00:01]} 35. gxf5 {[%emt 0:00:03]} gxf5 {[%emt 0:00:02]} 36. Kc2 {[%emt 0:00:01]} Kf6 {[%emt 0:00:01]} 37. Kc3 {[%emt 0:00:02]} a5 {[%emt 0:00:01]} 38. Rh1 {[%emt 0:00:01]} a4 {[%emt 0:00:02]} 39. Bc4 {[%emt 0:00:01]} Rc7 {[%emt 0:00:02]} 40. Kd4 {[%emt 0:00:01]} Rb6 {[%emt 0:00:02]} 41. Rh8 {[%emt 0:00:03]} Rc8 {[%emt 0:00:13]} 42. b3 {[%emt 0:00:04]} axb3 {[%emt 0:00:01]} 43. axb3 {[%emt 0:00:00]} Kg7 {[%emt 0:00:03]} 44. Rh1 {[%emt 0:00:02]} Kf6 {[%emt 0:00:00]} 45. Rh6+ {[%emt 0:00:01]} Kg7 {[%emt 0:00:01]} 46. Rh1 {[%emt 0:00:00]} Kf6 {[%emt 0:00:06]} 47. Rh6+ {[%emt 0:00:01]} Kg7 {[%emt 0:00:05]} 48. Rh1 {[%emt 0:00:01]} 1/2-1/2

[Event "CCT Chessable Masters Play-In 2025"]
[Site "Online"]
[Date "2025.02.17"]
[Round "2.44"]
[White "Guliyev, Namig"]
[Black "Harikrishna, Pentala"]
[Result "1/2-1/2"]
[ECO "C11"]
[WhiteElo "2486"]
[BlackElo "2695"]
[PlyCount "123"]
[EventDate "2025.02.13"]
[EventType "swiss"]
[EventCountry "NET"]
[TimeControl "600"]
[WhiteClock "0:00:30"]
[BlackClock "0:02:53"]

1. e4 {[%emt 0:01:48]} e6 {[%emt 0:00:02]} 2. d4 {[%emt 0:00:14]} d5 {[%emt 0:00:01]} 3. Nc3 {[%emt 0:00:01]} Nf6 {[%emt 0:00:01]} 4. e5 {[%emt 0:00:01]} Nfd7 {[%emt 0:00:01]} 5. f4 {[%emt 0:00:00]} c5 {[%emt 0:00:01]} 6. Nf3 {[%emt 0:00:00]} Nc6 {[%emt 0:00:01]} 7. Be3 {[%emt 0:00:01]} a6 {[%emt 0:00:01]} 8. Qd2 {[%emt 0:00:00]} b5 {[%emt 0:00:10]} 9. dxc5 {[%emt 0:00:01]} Bxc5 {[%emt 0:00:06]} 10. Ne2 {[%emt 0:00:01]} Bxe3 {[%emt 0:00:20]} 11. Qxe3 {[%emt 0:00:02]} Qb6 {[%emt 0:00:02]} 12. Qxb6 {[%emt 0:00:02]} Nxb6 {[%emt 0:00:01]} 13. Ned4 {[%emt 0:00:00]} Bd7 {[%emt 0:00:13]} 14. Bd3 {[%emt 0:00:06]} O-O {[%emt 0:00:08]} 15. Nxc6 {[%emt 0:00:06]} Bxc6 {[%emt 0:00:01]} 16. Nd4 {[%emt 0:00:01]} Bd7 {[%emt 0:00:06]} 17. O-O {[%emt 0:00:03]} Na4 {[%emt 0:00:03]} 18. b3 {[%emt 0:00:03]} Nc5 {[%emt 0:00:06]} 19. g3 {[%emt 0:00:09]} b4 {[%emt 0:00:03]} 20. a3 {[%emt 0:00:03]} a5 {[%emt 0:00:01]} 21. axb4 {[%emt 0:00:01]} axb4 {[%emt 0:00:02]} 22. Kf2 {[%emt 0:00:02]} Rfc8 {[%emt 0:00:53]} 23. Ke3 {[%emt 0:00:02]} f6 {[%emt 0:00:01]} 24. h4 {[%emt 0:00:16]} Be8 {[%emt 0:00:01]} 25. Rfc1 {[%emt 0:00:13]} Bg6 {[%emt 0:00:17]} 26. Rxa8 {[%emt 0:00:03]} Rxa8 {[%emt 0:00:02]} 27. Bxg6 {[%emt 0:00:25]} hxg6 {[%emt 0:00:01]} 28. c3 {[%emt 0:00:01]} bxc3 {[%emt 0:00:10]} 29. Rxc3 {[%emt 0:00:02]} Ne4 {[%emt 0:00:01]} 30. Rc7 {[%emt 0:00:04]} Nxg3 {[%emt 0:00:06]} 31. Nxe6 {[%emt 0:00:02]} Nf5+ {[%emt 0:00:03]} 32. Kd3 {[%emt 0:00:02]} Re8 {[%emt 0:00:12]} 33. Nxg7 {[%emt 0:00:05]} Nxg7 {[%emt 0:00:40]} 34. exf6 {[%emt 0:00:02]} Re4 {[%emt 0:00:05]} 35. Rxg7+ {[%emt 0:00:06]} Kf8 {[%emt 0:00:00]} 36. Rxg6 {[%emt 0:00:07]} Rxf4 {[%emt 0:00:01]} 37. h5 {[%emt 0:00:01]} Kf7 {[%emt 0:00:02]} 38. Rg5 {[%emt 0:01:33]} Ke6 {[%emt 0:00:13]} 39. Kc3 {[%emt 0:00:37]} Rf3+ {[%emt 0:00:11]} 40. Kc2 {[%emt 0:00:04]} d4 {[%emt 0:00:08]} 41. b4 {[%emt 0:00:02]} Rc3+ {[%emt 0:00:16]} 42. Kd2 {[%emt 0:00:12]} Kxf6 {[%emt 0:00:15]} 43. Rc5 {[%emt 0:00:17]} Rb3 {[%emt 0:00:03]} 44. b5 {[%emt 0:00:01]} d3 {[%emt 0:00:53]} 45. h6 {[%emt 0:00:37]} Kg6 {[%emt 0:00:02]} 46. Rc6+ {[%emt 0:00:13]} Kh7 {[%emt 0:00:04]} 47. b6 {[%emt 0:00:01]} Kh8 {[%emt 0:00:12]} 48. Rd6 {[%emt 0:00:05]} Kh7 {[%emt 0:00:04]} 49. Ke3 {[%emt 0:00:01]} Kh8 {[%emt 0:00:01]} 50. Kd4 {[%emt 0:00:08]} d2 {[%emt 0:00:04]} 51. Kc5 {[%emt 0:00:01]} Rb2 {[%emt 0:00:07]} 52. Kc6 {[%emt 0:00:03]} Rc2+ {[%emt 0:00:04]} 53. Kd7 {[%emt 0:00:02]} Rb2 {[%emt 0:00:05]} 54. Kc7 {[%emt 0:00:01]} Rc2+ {[%emt 0:00:01]} 55. Kb8 {[%emt 0:00:02]} Kh7 {[%emt 0:00:11]} 56. b7 {[%emt 0:00:06]} Rb2 {[%emt 0:00:03]} 57. Kc7 {[%emt 0:00:06]} Rc2+ {[%emt 0:00:01]} 58. Kd7 {[%emt 0:00:05]} Rb2 {[%emt 0:00:01]} 59. Kc8 {[%emt 0:00:03]} Rc2+ {[%emt 0:00:01]} 60. Kb8 {[%emt 0:00:22]} Rb2 {[%emt 0:00:01]} 61. Kc7 {[%emt 0:00:29]} Rc2+ {[%emt 0:00:01]} 62. Kb8 {[%emt 0:00:03]} 1/2-1/2

[Event "CCT Chessable Masters Play-In 2025"]
[Site "Online"]
[Date "2025.02.17"]
[Round "2.45"]
[White "Kuzubov, Yuriy"]
[Black "Gharibyan, Mamikon"]
[Result "1-0"]
[ECO "D36"]
[WhiteElo "2597"]
[BlackElo "2473"]
[PlyCount "123"]
[EventDate "2025.02.13"]
[EventType "swiss"]
[EventCountry "NET"]
[TimeControl "600"]
[WhiteClock "0:00:25"]
[BlackClock "0:00:01"]

1. d4 {[%emt 0:00:01]} Nf6 {[%emt 0:00:04]} 2. Nf3 {[%emt 0:00:00]} d5 {[%emt 0:00:01]} 3. c4 {[%emt 0:00:01]} e6 {[%emt 0:00:01]} 4. Nc3 {[%emt 0:00:01]} Nbd7 {[%emt 0:00:01]} 5. cxd5 {[%emt 0:00:09]} exd5 {[%emt 0:00:02]} 6. Bg5 {[%emt 0:00:09]} Be7 {[%emt 0:00:23]} 7. e3 {[%emt 0:00:02]} O-O {[%emt 0:00:03]} 8. Bd3 {[%emt 0:00:04]} Re8 {[%emt 0:00:07]} 9. O-O {[%emt 0:00:09]} Nf8 {[%emt 0:00:03]} 10. Qc2 {[%emt 0:00:08]} h6 {[%emt 0:00:22]} 11. Bh4 {[%emt 0:00:14]} c6 {[%emt 0:00:02]} 12. Rae1 {[%emt 0:00:16]} Ne4 {[%emt 0:00:36]} 13. Bxe7 {[%emt 0:00:10]} Qxe7 {[%emt 0:00:00]} 14. Bxe4 {[%emt 0:00:04]} dxe4 {[%emt 0:00:01]} 15. Nd2 {[%emt 0:00:01]} f5 {[%emt 0:00:04]} 16. f3 {[%emt 0:00:04]} exf3 {[%emt 0:00:05]} 17. Nxf3 {[%emt 0:00:05]} Be6 {[%emt 0:00:24]} 18. Ne5 {[%emt 0:00:57]} Rad8 {[%emt 0:00:25]} 19. Ne2 {[%emt 0:00:21]} Nd7 {[%emt 0:00:05]} 20. Ng6 {[%emt 0:00:26]} Qg5 {[%emt 0:00:23]} 21. Ngf4 {[%emt 0:00:05]} Bf7 {[%emt 0:00:28]} 22. Ng3 {[%emt 0:00:19]} g6 {[%emt 0:01:13]} 23. e4 {[%emt 0:00:02]} Nf6 {[%emt 0:00:04]} 24. Nh3 {[%emt 0:02:24]} Qh4 {[%emt 0:00:03]} 25. Rf4 {[%emt 0:00:08]} Ng4 {[%emt 0:00:02]} 26. Qc3 {[%emt 0:00:26]} h5 {[%emt 0:01:35]} 27. Ref1 {[%emt 0:00:07]} Qe7 {[%emt 0:01:44]} 28. exf5 {[%emt 0:00:06]} Qe3+ {[%emt 0:00:02]} 29. Qxe3 {[%emt 0:00:22]} Nxe3 {[%emt 0:00:00]} 30. fxg6 {[%emt 0:00:01]} Bxg6 {[%emt 0:00:04]} 31. Rc1 {[%emt 0:00:19]} Nd5 {[%emt 0:00:04]} 32. Rf2 {[%emt 0:00:01]} h4 {[%emt 0:00:15]} 33. Ne2 {[%emt 0:00:06]} Re4 {[%emt 0:00:08]} 34. Ng5 {[%emt 0:00:06]} Re3 {[%emt 0:00:09]} 35. Nf3 {[%emt 0:00:06]} h3 {[%emt 0:00:01]} 36. Ne5 {[%emt 0:00:02]} Kh7 {[%emt 0:00:03]} 37. Nf4 {[%emt 0:00:06]} Nxf4 {[%emt 0:00:12]} 38. Rxf4 {[%emt 0:00:00]} hxg2 {[%emt 0:00:01]} 39. Kxg2 {[%emt 0:00:08]} Rg8 {[%emt 0:00:04]} 40. Rh4+ {[%emt 0:00:09]} Bh5+ {[%emt 0:00:13]} 41. Kh1 {[%emt 0:00:21]} Kh6 {[%emt 0:00:02]} 42. Rf4 {[%emt 0:00:14]} Re2 {[%emt 0:00:02]} 43. Rf6+ {[%emt 0:00:01]} Kh7 {[%emt 0:00:02]} 44. Rd6 {[%emt 0:00:09]} Rgg2 {[%emt 0:00:01]} 45. Rd7+ {[%emt 0:00:02]} Kh6 {[%emt 0:00:00]} 46. Rd6+ {[%emt 0:00:01]} Kg5 {[%emt 0:00:01]} 47. Rg1 {[%emt 0:00:01]} Rxg1+ {[%emt 0:00:02]} 48. Kxg1 {[%emt 0:00:00]} Rxb2 {[%emt 0:00:01]} 49. a4 {[%emt 0:00:01]} Ra2 {[%emt 0:00:01]} 50. Rd7 {[%emt 0:00:01]} Kf4 {[%emt 0:00:01]} 51. Rxb7 {[%emt 0:00:02]} Rxa4 {[%emt 0:00:01]} 52. Nxc6 {[%emt 0:00:01]} Bf3 {[%emt 0:00:02]} 53. Rf7+ {[%emt 0:00:02]} Ke3 {[%emt 0:00:00]} 54. Re7+ {[%emt 0:00:02]} Be4 {[%emt 0:00:00]} 55. h4 {[%emt 0:00:02]} Ra1+ {[%emt 0:00:02]} 56. Kh2 {[%emt 0:00:00]} Rh1+ {[%emt 0:00:01]} 57. Kg3 {[%emt 0:00:02]} Rg1+ {[%emt 0:00:00]} 58. Kh3 {[%emt 0:00:02]} Kf4 {[%emt 0:00:00]} 59. Rf7+ {[%emt 0:00:03]} Bf5+ {[%emt 0:00:01]} 60. Kh2 {[%emt 0:00:00]} Rc1 {[%emt 0:00:00]} 61. Nb4 {[%emt 0:00:02]} Rc2+ {[%emt 0:00:02]} 62. Nxc2 {[%emt 0:00:01]} 1-0